[Event "FIDE Women's Grand Swiss 2023"]
[Site "Villa Marina, Douglas, Isle of Man, Isle Of Man"]
[Date "2023.10.26"]
[Round "2.17"]
[White "Danielian, Elina"]
[Black "Mkrtchyan, Mariam"]
[Result "1/2-1/2"]
[TimeControl "40/90 + 30 + 30s/move"]
[WhiteClock "00:03:00"]
[BlackClock "00:08:00"]
[WhiteFideId "13300210"]
[BlackFideId "13310828"]
[WhiteElo "2416"]
[BlackElo "2343"]

1. d4 {[%clk 01:30:56]} {[%emt 00:00:03]} d5 {[%clk 01:30:51]} {[%emt
00:00:09]} 2. c4 {[%clk 01:31:03]} {[%emt 00:00:24]} e6 {[%clk 01:31:15]}
{[%emt 00:00:06]} 3. Nc3 {[%clk 01:30:12]} {[%emt 00:01:20]} Nf6 {[%clk
01:31:37]} {[%emt 00:00:09]} 4. Nf3 {[%clk 01:30:07]} {[%emt 00:00:35]} Nbd7
{[%clk 01:31:59]} {[%emt 00:00:08]} 5. Bf4 {[%clk 01:28:43]} {[%emt 00:01:53]}
dxc4 {[%clk 01:31:19]} {[%emt 00:01:11]} 6. e3 {[%clk 01:29:06]} {[%emt
00:00:07]} Bd6 {[%clk 01:30:40]} {[%emt 00:01:08]} 7. Bg3 {[%clk 01:26:53]}
{[%emt 00:02:43]} Nb6 {[%clk 01:30:49]} {[%emt 00:00:22]} 8. Bxc4 {[%clk
01:26:43]} {[%emt 00:00:40]} Nxc4 {[%clk 01:31:13]} {[%emt 00:00:06]} 9. Qa4+
{[%clk 01:27:10]} {[%emt 00:00:03]} Bd7 {[%clk 01:31:37]} {[%emt 00:00:06]} 10.
Qxc4 {[%clk 01:27:34]} {[%emt 00:00:05]} Bc6 {[%clk 01:32:03]} {[%emt
00:00:04]} 11. Ne5 {[%clk 01:21:07]} {[%emt 00:06:57]} Bxe5 {[%clk 01:30:53]}
{[%emt 00:01:40]} 12. Bxe5 {[%clk 01:16:46]} {[%emt 00:04:52]} Nd7 {[%clk
01:30:51]} {[%emt 00:00:32]} 13. Bg3 {[%clk 01:01:35]} {[%emt 00:15:41]} Bxg2
{[%clk 01:27:46]} {[%emt 00:03:35]} 14. Rg1 {[%clk 01:00:38]} {[%emt 00:01:27]}
Bc6 {[%clk 01:27:41]} {[%emt 00:00:35]} 15. e4 {[%clk 00:58:12]} {[%emt
00:02:55]} O-O {[%clk 01:22:53]} {[%emt 00:05:18]} 16. O-O-O {[%clk 00:57:32]}
{[%emt 00:01:10]} Nb6 {[%clk 01:20:35]} {[%emt 00:02:49]} 17. Qc5 {[%clk
00:47:13]} {[%emt 00:10:49]} Rc8 {[%clk 01:17:32]} {[%emt 00:03:33]} 18. Qe5
{[%clk 00:37:48]} {[%emt 00:09:54]} Nc4 {[%clk 00:56:31]} {[%emt 00:21:32]} 19.
Qf4 {[%clk 00:26:11]} {[%emt 00:12:06]} Qe7 {[%clk 00:54:15]} {[%emt 00:02:46]}
20. Bh4 {[%clk 00:23:41]} {[%emt 00:03:00]} f6 {[%clk 00:52:44]} {[%emt
00:02:02]} 21. Qg3 {[%clk 00:16:16]} {[%emt 00:07:54]} Rf7 {[%clk 00:51:24]}
{[%emt 00:01:50]} 22. f4 {[%clk 00:16:06]} {[%emt 00:00:40]} Qf8 {[%clk
00:47:30]} {[%emt 00:04:24]} 23. Kb1 {[%clk 00:07:21]} {[%emt 00:09:16]} b5
{[%clk 00:45:05]} {[%emt 00:02:55]} 24. d5 {[%clk 00:06:23]} {[%emt 00:01:27]}
exd5 {[%clk 00:44:31]} {[%emt 00:01:04]} 25. Nxd5 {[%clk 00:06:45]} {[%emt
00:00:09]} Bxd5 {[%clk 00:38:21]} {[%emt 00:06:40]} 26. Rxd5 {[%clk 00:06:50]}
{[%emt 00:00:26]} c6 {[%clk 00:36:37]} {[%emt 00:02:13]} 27. Rdd1 {[%clk
00:07:00]} {[%emt 00:00:20]} Re8 {[%clk 00:36:15]} {[%emt 00:00:51]} 28. Qd3
{[%clk 00:04:41]} {[%emt 00:02:49]} Qb4 {[%clk 00:35:23]} {[%emt 00:01:23]} 29.
b3 {[%clk 00:02:55]} {[%emt 00:02:16]} Nb6 {[%clk 00:34:53]} {[%emt 00:01:00]}
30. Qd4 {[%clk 00:00:35]} {[%emt 00:02:49]} Rxe4 {[%clk 00:23:59]} {[%emt
00:11:24]} 31. Qxb4 {[%clk 00:00:33]} {[%emt 00:00:33]} Rxb4 {[%clk 00:24:24]}
{[%emt 00:00:05]} 32. Rd8+ {[%clk 00:00:43]} {[%emt 00:00:20]} Rf8 {[%clk
00:24:51]} {[%emt 00:00:03]} 33. Rd6 {[%clk 00:01:08]} {[%emt 00:00:05]} Rxf4
{[%clk 00:20:59]} {[%emt 00:04:21]} 34. Bg3 {[%clk 00:01:35]} {[%emt 00:00:03]}
Re4 {[%clk 00:20:42]} {[%emt 00:00:48]} 35. Rxc6 {[%clk 00:02:02]} {[%emt
00:00:03]} Rc8 {[%clk 00:18:57]} {[%emt 00:02:14]} 36. Rxc8+ {[%clk 00:00:47]}
{[%emt 00:01:45]} Nxc8 {[%clk 00:19:22]} {[%emt 00:00:05]} 37. Rc1 {[%clk
00:01:06]} {[%emt 00:00:11]} Ne7 {[%clk 00:18:56]} {[%emt 00:00:57]} 38. Rc7
{[%clk 00:01:18]} {[%emt 00:00:18]} a6 {[%clk 00:18:30]} {[%emt 00:00:56]} 39.
Ra7 {[%clk 00:01:17]} {[%emt 00:00:32]} Re6 {[%clk 00:18:41]} {[%emt 00:00:18]}
40. a4 {[%clk 00:01:09]} {[%emt 00:00:37]} bxa4 {[%clk 00:17:22]} {[%emt
00:01:50]} 41. bxa4 {[%clk 00:01:38]} g5 {[%clk 00:16:56]} {[%emt 00:00:56]} 42.
a5 {[%clk 00:01:42]} {[%emt 00:00:26]} f5 {[%clk 00:12:14]} {[%emt 00:05:11]}
43. Bf2 {[%clk 00:29:23]} {[%emt 00:02:49]} Nd5 {[%clk 00:40:45]} {[%emt
00:02:00]} 44. Bd4 {[%clk 00:24:48]} {[%emt 00:05:04]} h6 {[%clk 00:40:28]}
{[%emt 00:00:48]} 45. Kc2 {[%clk 00:22:56]} {[%emt 00:02:22]} f4 {[%clk
00:40:02]} {[%emt 00:00:55]} 46. Rg7+ {[%clk 00:17:18]} {[%emt 00:06:08]} Kf8
{[%clk 00:40:26]} {[%emt 00:00:06]} 47. Rd7 {[%clk 00:17:46]} {[%emt 00:00:02]}
Nb4+ {[%clk 00:38:41]} {[%emt 00:02:15]} 48. Kd2 {[%clk 00:18:09]} {[%emt
00:00:06]} Nc6 {[%clk 00:37:55]} {[%emt 00:01:18]} 49. Bb6 {[%clk 00:18:19]}
{[%emt 00:00:20]} f3 {[%clk 00:37:07]} {[%emt 00:01:17]} 50. h3 {[%clk
00:12:16]} {[%emt 00:06:33]} Ne5 {[%clk 00:27:25]} {[%emt 00:10:13]} 51. Bc5+
{[%clk 00:12:42]} {[%emt 00:00:04]} Ke8 {[%clk 00:27:15]} {[%emt 00:00:40]} 52.
Rd5 {[%clk 00:03:41]} {[%emt 00:09:31]} Ng6 {[%clk 00:26:27]} {[%emt 00:01:18]}
53. Rd3 {[%clk 00:00:52]} {[%emt 00:03:19]} Ne5 {[%clk 00:19:26]} {[%emt
00:07:30]} 54. Rd5 {[%clk 00:01:19]} {[%emt 00:00:04]} Nc4+ {[%clk 00:17:21]}
{[%emt 00:02:36]} 55. Kd3 {[%clk 00:01:08]} {[%emt 00:00:40]} Nxa5 {[%clk
00:16:28]} {[%emt 00:01:23]} 56. Rf5 {[%clk 00:01:31]} {[%emt 00:00:07]} Nc6
{[%clk 00:16:07]} {[%emt 00:00:51]} 57. Kc4 {[%clk 00:00:34]} {[%emt 00:01:27]}
Rg6 {[%clk 00:10:27]} {[%emt 00:06:10]} 58. Kc3 {[%clk 00:00:34]} {[%emt
00:00:30]} g4 {[%clk 00:08:48]} {[%emt 00:02:09]} 59. hxg4 {[%clk 00:00:53]}
{[%emt 00:00:11]} Rxg4 {[%clk 00:09:03]} {[%emt 00:00:15]} 60. Be3 {[%clk
00:00:44]} {[%emt 00:00:38]} Rg6 {[%clk 00:07:21]} {[%emt 00:02:13]} 61. Rxf3
{[%clk 00:00:47]} {[%emt 00:00:27]} Ne5 {[%clk 00:07:32]} {[%emt 00:00:19]} 62.
Rf5 {[%clk 00:00:54]} {[%emt 00:00:23]} Ng4 {[%clk 00:07:31]} {[%emt 00:00:31]}
63. Bd2 {[%clk 00:00:51]} {[%emt 00:00:33]} Rd6 {[%clk 00:06:48]} {[%emt
00:01:13]} 64. Bf4 {[%clk 00:00:43]} {[%emt 00:00:37]} Rb6 {[%clk 00:06:58]}
{[%emt 00:00:21]} 65. Kc4 {[%clk 00:00:35]} {[%emt 00:00:38]} Ke7 {[%clk
00:06:26]} {[%emt 00:01:01]} 66. Rh5 {[%clk 00:00:35]} {[%emt 00:00:30]} Rf6
{[%clk 00:02:57]} {[%emt 00:04:00]} 67. Bd2 {[%clk 00:00:42]} {[%emt 00:00:23]}
Ke6 {[%clk 00:01:36]} {[%emt 00:01:50]} 68. Kb4 {[%clk 00:00:52]} {[%emt
00:00:21]} Kf7 {[%clk 00:00:46]} {[%emt 00:01:21]} 69. Rh4 {[%clk 00:00:56]}
{[%emt 00:00:25]} Rd6 {[%clk 00:01:13]} {[%emt 00:00:03]} 70. Bc1 {[%clk
00:00:46]} {[%emt 00:00:40]} Rc6 {[%clk 00:00:35]} {[%emt 00:01:08]} 71. Bd2
{[%clk 00:00:49]} {[%emt 00:00:26]} Rg6 {[%clk 00:00:36]} {[%emt 00:00:30]} 72.
Ka5 {[%clk 00:01:04]} {[%emt 00:00:15]} Kg7 {[%clk 00:00:52]} {[%emt 00:00:15]}
73. Bc1 {[%clk 00:00:35]} {[%emt 00:00:58]} Kf7 {[%clk 00:01:13]} {[%emt
00:00:08]} 74. Bd2 {[%clk 00:00:54]} {[%emt 00:00:12]} Ke7 {[%clk 00:01:42]}
{[%emt 00:00:01]} 75. Bxh6 {[%clk 00:00:33]} {[%emt 00:00:51]} Nxh6 {[%clk
00:01:55]} {[%emt 00:00:17]} 76. Rb4 {[%clk 00:01:01]} {[%emt 00:00:01]} Nf5
{[%clk 00:01:25]} {[%emt 00:01:01]} 77. Rb6 {[%clk 00:00:44]} {[%emt 00:00:46]}
Nd6 {[%clk 00:01:54]} {[%emt 00:00:02]} 78. Rxa6 {[%clk 00:00:45]} {[%emt
00:00:29]} Ke6 {[%clk 00:01:45]} {[%emt 00:00:39]} 79. Kb4 {[%clk 00:01:01]}
{[%emt 00:00:13]} Kd5 {[%clk 00:02:09]} {[%emt 00:00:07]} 80. Ra8 {[%clk
00:01:21]} {[%emt 00:00:10]} Rg4+ {[%clk 00:02:19]} {[%emt 00:00:20]} 81. Kc3
{[%clk 00:01:32]} {[%emt 00:00:18]} Ne4+ {[%clk 00:02:07]} {[%emt 00:00:42]} 82.
Kd3 {[%clk 00:01:25]} {[%emt 00:00:37]} Rg3+ {[%clk 00:02:23]} {[%emt
00:00:15]} 83. Ke2 {[%clk 00:01:45]} {[%emt 00:00:09]} Rb3 {[%clk 00:01:44]}
{[%emt 00:01:10]} 84. Rd8+ {[%clk 00:01:48]} {[%emt 00:00:27]} Nd6 {[%clk
00:02:13]} {[%emt 00:00:01]} 85. Rd7 {[%clk 00:01:11]} {[%emt 00:01:07]} Ke6
{[%clk 00:02:20]} {[%emt 00:00:24]} 86. Rd8 {[%clk 00:01:21]} {[%emt 00:00:19]}
Ke5 {[%clk 00:02:49]} {[%emt 00:00:02]} 87. Kd2 {[%clk 00:01:12]} {[%emt
00:00:38]} Rh3 {[%clk 00:02:37]} {[%emt 00:00:42]} 88. Kc2 {[%clk 00:00:48]}
{[%emt 00:00:54]} Nb5 {[%clk 00:02:08]} {[%emt 00:00:59]} 89. Re8+ {[%clk
00:01:05]} {[%emt 00:00:13]} Kd4 {[%clk 00:02:18]} {[%emt 00:00:20]} 90. Rd8+
{[%clk 00:01:24]} {[%emt 00:00:11]} Kc4 {[%clk 00:02:39]} {[%emt 00:00:10]} 91.
Rc8+ {[%clk 00:01:46]} {[%emt 00:00:07]} Kd5 {[%clk 00:02:53]} {[%emt
00:00:17]} 92. Rd8+ {[%clk 00:02:12]} {[%emt 00:00:03]} Kc6 {[%clk 00:02:53]}
{[%emt 00:00:31]} 93. Rc8+ {[%clk 00:02:35]} {[%emt 00:00:06]} Kd7 {[%clk
00:03:21]} {[%emt 00:00:01]} 94. Rb8 {[%clk 00:02:37]} {[%emt 00:00:29]} Nc7
{[%clk 00:03:38]} {[%emt 00:00:14]} 95. Kd2 {[%clk 00:02:52]} {[%emt 00:00:14]}
Nd5 {[%clk 00:03:59]} {[%emt 00:00:09]} 96. Rg8 {[%clk 00:02:14]} {[%emt
00:01:07]} Kd6 {[%clk 00:04:27]} {[%emt 00:00:03]} 97. Kc2 {[%clk 00:02:01]}
{[%emt 00:00:43]} Kc5 {[%clk 00:04:53]} {[%emt 00:00:04]} 98. Rg5 {[%clk
00:01:57]} {[%emt 00:00:34]} Rf3 {[%clk 00:05:18]} {[%emt 00:00:05]} 99. Rh5
{[%clk 00:01:40]} {[%emt 00:00:46]} Kc4 {[%clk 00:05:44]} {[%emt 00:00:05]} 100.
Rh4+ {[%clk 00:02:00]} {[%emt 00:00:10]} Nf4 {[%clk 00:06:13]} {[%emt
00:00:01]} 101. Kd2 {[%clk 00:02:06]} {[%emt 00:00:23]} Kd4 {[%clk 00:06:40]}
{[%emt 00:00:03]} 102. Kc2 {[%clk 00:02:24]} {[%emt 00:00:13]} Kc4 {[%clk
00:07:06]} {[%emt 00:00:04]} 103. Kd2 {[%clk 00:02:50]} {[%emt 00:00:03]} Kd4
{[%clk 00:07:32]} {[%emt 00:00:05]} 104. Kc2 {[%clk 00:03:16]} {[%emt
00:00:03]} Kd5 {[%emt 00:00:21]} 1/2-1/2

[Event "FIDE Women's Grand Swiss 2023"]
[Site "Villa Marina, Douglas, Isle of Man, Isle Of Man"]
[Date "2023.10.26"]
[Round "2.18"]
[White "Batsiashvili, Nino"]
[Black "Terbe, Julianna"]
[Result "1-0"]
[TimeControl "40/90 + 30 + 30s/move"]
[WhiteFideId "13602993"]
[BlackFideId "708780"]
[WhiteElo "2475"]
[BlackElo "2266"]

1. Nf3 {[%clk 01:30:57]} {[%emt 00:00:03]} d5 {[%clk 01:30:53]} {[%emt
00:00:08]} 2. e3 {[%clk 01:31:21]} {[%emt 00:00:06]} Nf6 {[%clk 01:31:12]}
{[%emt 00:00:11]} 3. c4 {[%clk 01:31:47]} {[%emt 00:00:04]} c6 {[%clk
01:31:38]} {[%emt 00:00:04]} 4. Nc3 {[%clk 01:32:12]} {[%emt 00:00:05]} a6
{[%clk 01:31:56]} {[%emt 00:00:12]} 5. d4 {[%clk 01:32:31]} {[%emt 00:00:11]}
e6 {[%clk 01:32:17]} {[%emt 00:00:09]} 6. h3 {[%clk 01:32:52]} {[%emt
00:00:10]} Nbd7 {[%clk 01:29:20]} {[%emt 00:03:26]} 7. Qc2 {[%clk 01:32:30]}
{[%emt 00:00:52]} Bd6 {[%clk 01:25:11]} {[%emt 00:04:39]} 8. g4 {[%clk
01:32:45]} {[%emt 00:00:15]} dxc4 {[%clk 01:19:46]} {[%emt 00:05:56]} 9. e4
{[%clk 01:32:52]} {[%emt 00:00:22]} e5 {[%clk 01:08:54]} {[%emt 00:11:21]} 10.
Bxc4 {[%clk 01:30:25]} {[%emt 00:02:57]} O-O {[%clk 00:56:55]} {[%emt
00:12:30]} 11. Be3 {[%clk 01:30:43]} {[%emt 00:00:12]} b5 {[%clk 00:54:50]}
{[%emt 00:02:35]} 12. Be2 {[%clk 01:29:45]} {[%emt 00:01:27]} exd4 {[%clk
00:37:19]} {[%emt 00:18:02]} 13. Nxd4 {[%clk 01:29:56]} {[%emt 00:00:18]} Qc7
{[%clk 00:37:32]} {[%emt 00:00:17]} 14. g5 {[%clk 01:22:18]} {[%emt 00:08:08]}
Ne8 {[%clk 00:36:51]} {[%emt 00:01:12]} 15. O-O-O {[%clk 01:17:09]} {[%emt
00:05:39]} Nb6 {[%clk 00:30:09]} {[%emt 00:07:12]} 16. Nf5 {[%clk 01:11:53]}
{[%emt 00:05:46]} Bf4 {[%clk 00:28:19]} {[%emt 00:02:20]} 17. Kb1 {[%clk
01:01:23]} {[%emt 00:10:59]} Bxe3 {[%clk 00:26:22]} {[%emt 00:02:28]} 18. Nxe3
{[%clk 01:00:30]} {[%emt 00:01:23]} Be6 {[%clk 00:24:52]} {[%emt 00:02:00]} 19.
Bg4 {[%clk 00:59:49]} {[%emt 00:01:11]} Qf4 {[%clk 00:15:31]} {[%emt 00:09:51]}
20. Rhg1 {[%clk 00:51:53]} {[%emt 00:08:26]} b4 {[%clk 00:11:44]} {[%emt
00:04:17]} 21. Ne2 {[%clk 00:47:05]} {[%emt 00:05:17]} Qxf2 {[%clk 00:04:13]}
{[%emt 00:08:00]} 22. Rg3 {[%clk 00:46:41]} {[%emt 00:00:55]} Nc7 {[%clk
00:03:22]} {[%emt 00:01:22]} 23. Rf1 {[%clk 00:35:34]} {[%emt 00:11:36]} Qh2
{[%clk 00:03:44]} {[%emt 00:00:09]} 24. Rfg1 {[%clk 00:35:24]} {[%emt
00:00:39]} Rad8 {[%clk 00:00:45]} {[%emt 00:03:30]} 25. Bxe6 {[%clk 00:34:56]}
{[%emt 00:00:58]} Nxe6 {[%clk 00:01:02]} {[%emt 00:00:13]} 26. Ng4 {[%clk
00:35:22]} {[%emt 00:00:04]} Nd4 {[%clk 00:00:55]} {[%emt 00:00:38]} 27. Nxd4
{[%clk 00:35:06]} {[%emt 00:00:45]} Qxc2+ {[%clk 00:01:21]} {[%emt 00:00:04]}
28. Nxc2 {[%clk 00:35:33]} {[%emt 00:00:04]} c5 {[%clk 00:01:41]} {[%emt
00:00:10]} 29. Nce3 {[%clk 00:34:46]} {[%emt 00:01:15]} Rde8 {[%clk 00:00:58]}
{[%emt 00:01:14]} 30. e5 {[%clk 00:35:07]} {[%emt 00:00:09]} c4 {[%clk
00:00:59]} {[%emt 00:00:30]} 31. Rd1 {[%clk 00:34:43]} {[%emt 00:00:53]} Re6
{[%clk 00:00:57]} {[%emt 00:00:32]} 32. Nd5 {[%clk 00:34:21]} {[%emt 00:00:52]}
a5 {[%clk 00:00:52]} {[%emt 00:00:36]} 33. Nxb6 {[%clk 00:33:00]} {[%emt
00:01:50]} Rxb6 {[%clk 00:01:21]} 34. Ne3 {[%clk 00:31:54]} {[%emt 00:01:36]}
c3 {[%clk 00:01:02]} {[%emt 00:00:49]} 35. Nd5 {[%clk 00:32:16]} {[%emt
00:00:07]} Rb5 {[%clk 00:01:10]} {[%emt 00:00:23]} 36. bxc3 {[%clk 00:32:23]}
{[%emt 00:00:23]} bxc3+ {[%clk 00:01:35]} {[%emt 00:00:05]} 37. Kc1 {[%clk
00:32:49]} {[%emt 00:00:03]} Rfb8 {[%clk 00:01:17]} {[%emt 00:00:49]} 38. Rxc3
{[%clk 00:32:38]} {[%emt 00:00:41]} Kf8 {[%clk 00:01:06]} {[%emt 00:00:40]} 39.
a4 {[%clk 00:31:18]} {[%emt 00:01:51]} Rb1+ {[%clk 00:00:54]} {[%emt 00:00:42]}
40. Kd2 {[%clk 00:31:42]} {[%emt 00:00:05]} R1b2+ {[%clk 00:01:15]} {[%emt
00:00:10]} 41. Rc2 {[%clk 00:31:42]} {[%emt 00:00:30]} R2b3 {[%clk 00:01:42]}
{[%emt 00:00:03]} 42. Rdc1 {[%clk 00:31:43]} {[%emt 00:00:27]} Ke8 {[%clk
00:01:39]} {[%emt 00:00:35]} 43. Rc8+ {[%clk 00:32:07]} {[%emt 00:00:06]} Rxc8
{[%emt 00:00:04]} 44. Rxc8+ {[%clk 00:32:33]} {[%emt 00:00:03]} Kd7 {[%clk
00:02:31]} {[%emt 00:00:04]} 45. Rc3 {[%clk 00:31:05]} {[%emt 00:01:57]} Rb2+
{[%clk 00:02:37]} {[%emt 00:00:26]} 46. Ke3 {[%clk 00:31:23]} {[%emt 00:00:10]}
Ke6 {[%clk 00:30:05]} {[%emt 00:03:04]} 47. Ke4 {[%clk 01:00:30]} {[%emt
00:01:22]} Re2+ {[%clk 00:30:00]} {[%emt 00:00:36]} 48. Ne3 {[%clk 01:00:35]}
{[%emt 00:00:25]} Ra2 {[%clk 00:30:25]} {[%emt 00:00:05]} 49. Rc6+ {[%clk
01:00:58]} {[%emt 00:00:07]} Kd7 {[%clk 00:30:07]} {[%emt 00:00:48]} 50. Rd6+
{[%clk 01:01:10]} {[%emt 00:00:17]} Ke8 {[%clk 00:30:33]} {[%emt 00:00:05]} 51.
Rd4 {[%clk 01:01:28]} {[%emt 00:00:12]} Rh2 {[%clk 00:30:12]} {[%emt 00:00:51]}
52. Rd5 {[%clk 01:00:21]} {[%emt 00:01:37]} Rxh3 {[%clk 00:30:37]} {[%emt
00:00:05]} 53. Rxa5 {[%clk 01:00:48]} {[%emt 00:00:03]} h5 {[%clk 00:30:52]}
{[%emt 00:00:14]} 54. Ra8+ {[%clk 01:00:32]} {[%emt 00:00:46]} Kd7 {[%clk
00:31:12]} {[%emt 00:00:10]} 55. Ra7+ {[%clk 01:00:59]} {[%emt 00:00:03]} Ke6
{[%clk 00:31:20]} {[%emt 00:00:22]} 56. Ng2 {[%clk 01:00:51]} {[%emt 00:00:38]}
1-0